lending/lending_fUSD_20240110
["ID","MTS","AMOUNT","RATE_DAILY","PERIOD"]
[311048233,1704889855955,-500.0,0.0003041,2]
[311048234,1704889856050,-500.0,0.0003041,2]
[311048235,1704889856059,-592.15,0.0003041,2]
[311048236,1704889856069,-500.0,0.0003041,2]
[311048237,1704889856078,-500.0,0.0003041,2]
[311048238,1704889856087,-500.0,0.0003041,2]
[311048239,1704889856096,-500.0,0.0003041,2]
[311048240,1704889856106,-500.0,0.0003041,2]
[311048241,1704889856115,-500.0,0.0003041,2]
[311048242,1704889856126,-500.0,0.0003041,2]
[311048243,1704889856139,-500.0,0.0003041,2]
[311048244,1704889856148,-500.0,0.0003041,2]
[311048245,1704889856158,-512.35,0.0003041,2]
[311048246,1704889856167,-500.0,0.0003041,2]
[311048247,1704889856176,-500.0,0.0003041,2]
[311048248,1704889856185,-1485.01,0.0003041,2]
[311048249,1704889856194,-500.0,0.0003041,2]
[311048250,1704889856204,-590.57485582,0.0003041,2]
[311048251,1704889856213,-500.0,0.0003041,2]
[311048252,1704889856222,-500.0,0.0003041,2]
[311048253,1704889856232,-500.0,0.0003041,2]
[311048254,1704889856241,-500.0,0.0003041,2]
[311048255,1704889856250,-500.0,0.0003041,2]
[311048256,1704889856259,-500.0,0.0003041,2]
[311048257,1704889856268,-500.0,0.0003041,2]
[311048258,1704889856278,-580.7,0.0003041,2]
[311048259,1704889856287,-1058.01,0.0003041,2]
[311048260,1704889856296,-954.7,0.0003041,2]
[311048261,1704889856305,-749.97,0.0003041,2]
[311048262,1704889856314,-500.0,0.0003041,2]
[311048263,1704889856323,-500.0,0.0003041,2]
[311048264,1704889856332,-500.0,0.0003041,2]
[311048265,1704889856342,-500.0,0.0003041,2]
[311048266,1704889856351,-630.7,0.0003041,2]
[311048267,1704889856360,-500.0,0.0003041,2]
[311048268,1704889856369,-500.0,0.0003041,2]
[311048269,1704889856378,-500.0,0.0003041,2]
[311048270,1704889856390,-500.0,0.0003041,2]
[311048271,1704889856399,-500.0,0.0003041,2]
[311048272,1704889856408,-834.07,0.0003041,2]
[311048273,1704889856418,-500.0,0.0003041,2]
[311048274,1704889856427,-1172.81,0.0003041,2]
[311048275,1704889856436,-500.0,0.0003041,2]
[311048276,1704889856445,-500.0,0.0003041,2]
[311048277,1704889856454,-500.0,0.0003041,2]
[311048278,1704889856463,-969.67,0.0003041,2]
[311048279,1704889856472,-500.0,0.0003041,2]
[311048280,1704889856481,-500.0,0.0003041,2]
[311048281,1704889856490,-504.6,0.0003041,2]
[311048282,1704889856499,-511.97919871,0.0003041,2]
[311048283,1704889856509,-853.19,0.0003041,2]
[311048284,1704889856518,-500.0,0.0003041,2]
[311048285,1704889856527,-500.0,0.0003041,2]
[311048286,1704889856535,-675.48,0.0003041,2]
[311048287,1704889856545,-855.92,0.0003041,2]
[311048288,1704889856554,-1032.1,0.0003041,2]
[311048289,1704889856564,-914.55,0.0003041,2]
[311048290,1704889856573,-654.47,0.0003041,2]
[311048291,1704889856582,-641.19,0.0003041,2]
[311048292,1704889856591,-500.0,0.0003041,2]
[311048293,1704889856600,-500.0,0.0003041,2]
[311048294,1704889856609,-758.86,0.0003041,2]
[311048295,1704889856618,-500.0,0.0003041,2]
[311048296,1704889856627,-662.17,0.0003041,2]
[311048297,1704889856641,-500.0,0.0003041,2]
[311048298,1704889856650,-500.0,0.0003041,2]
[311048299,1704889856659,-500.0,0.0003041,2]
[311048300,1704889856668,-500.0,0.0003041,2]
[311048301,1704889856678,-500.0,0.0003041,2]
[311048302,1704889856695,-500.0,0.0003041,2]
[311048303,1704889856704,-500.0,0.0003041,2]
[311048304,1704889856713,-500.0,0.0003041,2]
[311048305,1704889856722,-642.49,0.0003041,2]
[311048306,1704889856731,-581.45,0.0003041,2]
[311048307,1704889856741,-500.0,0.0003041,2]
[311048308,1704889856750,-539.28457627,0.0003041,2]
[311048309,1704889856759,-500.0,0.0003041,2]
[311048310,1704889856768,-500.0,0.0003041,2]
[311048311,1704889856777,-419.80772674,0.0003041,2]
[311048312,1704889856786,-500.0,0.0003041,2]
[311048313,1704889856795,-500.0,0.0003041,2]
[311048314,1704889856805,-864.53,0.0003041,2]
[311048315,1704889856814,-500.0,0.0003041,2]
[311048316,1704889856823,-1435.24,0.0003041,2]
[311048317,1704889856832,-500.0,0.0003041,2]
[311048318,1704889856841,-500.0,0.0003041,2]
[311048319,1704889856850,-526.90931256,0.0003041,2]
[311048320,1704889856859,-500.0,0.0003041,2]
[311048321,1704889856868,-803.66,0.0003041,2]
[311048322,1704889856877,-500.0,0.0003041,2]
[311048323,1704889856890,-500.0,0.0003041,2]
[311048324,1704889856901,-500.0,0.0003041,2]
[311048325,1704889856911,-500.0,0.0003041,2]
[311048326,1704889856921,-500.0,0.0003041,2]
[311048327,1704889856931,-500.0,0.0003041,2]
[311048328,1704889856940,-602.17,0.0003041,2]
[311048329,1704889856950,-500.0,0.0003041,2]
[311048330,1704889856959,-895.58,0.0003041,2]
[311048331,1704889856968,-500.0,0.0003041,2]
[311048332,1704889856978,-863.68,0.0003041,2]
[311048333,1704889856987,-500.0,0.0003041,2]
[311048334,1704889856996,-500.0,0.0003041,2]
[311048335,1704889857005,-521.69,0.0003041,2]
[311048336,1704889857015,-500.0,0.0003041,2]
[311048337,1704889857024,-500.0,0.0003041,2]
[311048338,1704889857034,-748.95,0.0003041,2]
[311048339,1704889857043,-500.0,0.0003041,2]
[311048340,1704889857054,-679.29,0.0003041,2]
[311048341,1704889857063,-500.0,0.0003041,2]
[311048342,1704889857073,-632.72,0.0003041,2]
[311048343,1704889857082,-809.84,0.0003041,2]
[311048344,1704889857091,-1190.9,0.0003041,2]
[311048345,1704889857101,-924.2,0.0003041,2]
[311048346,1704889857110,-736.17,0.0003041,2]
[311048347,1704889857119,-1153.88,0.0003041,2]
[311048348,1704889857128,-500.0,0.0003041,2]
[311048349,1704889857141,-500.0,0.0003041,2]
[311048350,1704889857151,-1430.8,0.0003041,2]
[311048351,1704889857160,-952.48,0.0003041,2]
[311048352,1704889857169,-500.0,0.0003041,2]
[311048353,1704889857178,-500.0,0.0003041,2]
[311048354,1704889857187,-1431.71,0.0003041,2]
[311048355,1704889857196,-500.0,0.0003041,2]
[311048356,1704889857206,-500.0,0.0003041,2]
[311048357,1704889857215,-500.0,0.0003041,2]
[311048358,1704889857223,-588.51,0.0003041,2]
[311048359,1704889857232,-500.0,0.0003041,2]
[311048360,1704889857241,-907.53,0.0003041,2]
[311048361,1704889857251,-500.0,0.0003041,2]
[311048362,1704889857259,-500.0,0.0003041,2]
[311048363,1704889857269,-585.0,0.0003041,2]
[311048364,1704889857279,-778.49,0.0003041,2]
[311048365,1704889857288,-881.3,0.0003041,2]
[311048366,1704889857297,-679.75,0.0003041,2]
[311048367,1704889857306,-543.32676542,0.0003041,2]
[311048368,1704889857315,-500.0,0.0003041,2]
[311048369,1704889857324,-526.76,0.0003041,2]
[311048370,1704889857333,-867.28,0.0003041,2]
[311048371,1704889857343,-685.4,0.0003041,2]
[311048372,1704889857351,-500.0,0.0003041,2]
[311048373,1704889857361,-500.0,0.0003041,2]
[311048374,1704889857370,-500.0,0.0003041,2]
[311048375,1704889857379,-720.0,0.0003041,2]
[311048376,1704889857391,-735.37,0.0003041,2]
[311048377,1704889857401,-500.0,0.0003041,2]
[311048378,1704889857410,-500.0,0.0003041,2]
[311048379,1704889857419,-850.19,0.0003041,2]
[311048380,1704889857428,-500.0,0.0003041,2]
[311048381,1704889857437,-755.08,0.0003041,2]
[311048382,1704889857446,-500.0,0.0003041,2]
[311048383,1704889857455,-340.35394736,0.0003041,2]
[311048384,1704889857465,-500.0,0.0003041,2]
[311048385,1704889857473,-1729.92,0.0003041,2]
[311048386,1704889857482,-500.0,0.0003041,2]
[311048387,1704889857491,-500.0,0.0003041,2]
[311048388,1704889857500,-500.0,0.0003041,2]
[311048389,1704889857509,-500.0,0.0003041,2]
[311048390,1704889857518,-500.0,0.0003041,2]
[311048391,1704889857527,-1000.0,0.0003041,2]
[311048392,1704889857536,-500.0,0.0003041,2]
[311048393,1704889857546,-500.0,0.0003041,2]
[311048394,1704889857555,-1075.29,0.0003041,2]
[311048395,1704889857564,-500.0,0.0003041,2]
[311048396,1704889857573,-768.21,0.0003041,2]
[311048397,1704889857582,-1164.78,0.0003041,2]
[311048398,1704889857591,-677.83,0.0003041,2]
[311048399,1704889857601,-500.0,0.0003041,2]
[311048400,1704889857609,-649.5,0.0003041,2]
[311048401,1704889857618,-500.0,0.0003041,2]
[311048402,1704889857627,-1344.87,0.0003041,2]
[311048403,1704889857639,-1029.12,0.0003041,2]
[311048404,1704889857648,-541.66,0.0003041,2]
[311048405,1704889857658,-500.0,0.0003041,2]
[311048406,1704889857668,-500.0,0.0003041,2]
[311048407,1704889857677,-440.56034759,0.0003041,2]
[311048408,1704889857687,-670.72,0.0003041,2]
[311048409,1704889857696,-509.98,0.0003041,2]
[311048410,1704889857705,-652.81,0.0003041,2]
[311048411,1704889857716,-1260.23,0.0003041,2]
[311048412,1704889857725,-547.11,0.0003041,2]
[311048413,1704889857734,-500.0,0.0003041,2]
[311048414,1704889857748,-500.0,0.0003041,2]
[311048415,1704889857758,-716.82,0.0003041,2]
[311048416,1704889857767,-500.0,0.0003041,2]
[311048417,1704889857776,-854.87,0.0003041,2]
[311048418,1704889857785,-500.0,0.0003041,2]
[311048419,1704889857794,-611.38,0.0003041,2]
[311048420,1704889857803,-1006.48,0.0003041,2]
[311048421,1704889857812,-994.34,0.0003041,2]
[311048422,1704889857821,-668.89,0.0003041,2]
[311048423,1704889857830,-500.0,0.0003041,2]
[311048424,1704889857841,-1022.6,0.0003041,2]
[311048425,1704889857849,-500.0,0.0003041,2]
[311048426,1704889857858,-174.99355413,0.0003041,2]
[311048427,1704889857868,-825.44,0.0003041,2]
[311048428,1704889857877,-500.0,0.0003041,2]
[311048429,1704889857889,-500.0,0.0003041,2]
[311048430,1704889857899,-500.0,0.0003041,2]
[311048431,1704889857908,-883.46,0.0003041,2]
[311048432,1704889857917,-1122.15,0.0003041,2]
[311048433,1704889857926,-500.0,0.0003041,2]
[311048434,1704889857936,-893.01,0.0003041,2]
[311048435,1704889857945,-500.0,0.0003041,2]
[311048436,1704889857954,-500.0,0.0003041,2]
[311048437,1704889857963,-605.43,0.0003041,2]
[311048438,1704889857972,-500.0,0.0003041,2]
[311048439,1704889857981,-758.98,0.0003041,2]
[311048440,1704889857991,-736.78,0.0003041,2]
[311048441,1704889858000,-1205.85,0.0003041,2]
[311048442,1704889858009,-1329.19,0.0003041,2]
[311048443,1704889858018,-500.0,0.0003041,2]
[311048444,1704889858027,-574.20260323,0.0003041,2]
[311048445,1704889858035,-500.0,0.0003041,2]
[311048446,1704889858045,-561.87,0.0003041,2]
[311048447,1704889858053,-799.07,0.0003041,2]
[311048448,1704889858063,-553.43,0.0003041,2]
[311048449,1704889858072,-500.0,0.0003041,2]
[311048450,1704889858081,-500.0,0.0003041,2]
[311048451,1704889858090,-694.76,0.0003041,2]
[311048452,1704889858099,-617.06,0.0003041,2]
[311048453,1704889858108,-500.0,0.0003041,2]
[311048454,1704889858117,-693.65,0.0003041,2]
[311048455,1704889858127,-552.3,0.0003041,2]
[311048456,1704889858137,-567.33,0.0003041,2]
[311048457,1704889858149,-828.91,0.0003041,2]
[311048458,1704889858158,-985.6,0.0003041,2]
[311048459,1704889858168,-1115.42,0.0003041,2]
[311048460,1704889858177,-609.52,0.0003041,2]
[311048461,1704889858186,-1150.67,0.0003041,2]
[311048462,1704889858195,-1062.08,0.0003041,2]
[311048463,1704889858204,-500.0,0.0003041,2]
[311048464,1704889858214,-847.77,0.0003041,2]
[311048465,1704889858222,-500.0,0.0003041,2]
[311048466,1704889858231,-995.33,0.0003041,2]
[311048467,1704889858241,-1009.26,0.0003041,2]
[311048468,1704889858250,-1492.85,0.0003041,2]
[311048469,1704889858259,-575.14,0.0003041,2]
[311048470,1704889858268,-1053.94,0.0003041,2]
[311048471,1704889858277,-500.0,0.0003041,2]
[311048472,1704889858286,-1131.33,0.0003041,2]
[311048473,1704889858295,-571.54,0.0003041,2]
[311048474,1704889858304,-1127.79,0.0003041,2]
[311048475,1704889858313,-500.0,0.0003041,2]
[311048476,1704889858322,-500.0,0.0003041,2]
[311048477,1704889858331,-954.83,0.0003041,2]
[311048478,1704889858340,-1368.46,0.0003041,2]
[311048479,1704889858350,-500.0,0.0003041,2]
[311048480,1704889858359,-500.0,0.0003041,2]
[311048481,1704889858369,-981.86,0.0003041,2]
[311048482,1704889858378,-616.24,0.0003041,2]
[311048483,1704889858391,-500.0,0.0003041,2]
[311048484,1704889858400,-550.16,0.0003041,2]
[311048485,1704889858409,-641.53,0.0003041,2]
[311048486,1704889858419,-500.0,0.0003041,2]
[311048487,1704889858428,-500.0,0.0003041,2]
[311048488,1704889858438,-500.0,0.0003041,2]
[311048489,1704889858447,-782.63,0.0003041,2]
[311048490,1704889858456,-708.63,0.0003041,2]
[311048491,1704889858465,-500.0,0.0003041,2]
[311048492,1704889858475,-733.24,0.0003041,2]
[311048493,1704889858484,-500.0,0.0003041,2]
[311048494,1704889858492,-1855.75,0.0003041,2]
[311048495,1704889858502,-532.5,0.0003041,2]
[311048496,1704889858511,-500.0,0.0003041,2]
[311048497,1704889858520,-500.0,0.0003041,2]
[311048498,1704889858530,-721.83,0.0003041,2]
[311048499,1704889858539,-603.69,0.0003041,2]
[311048500,1704889858548,-500.0,0.0003041,2]
[311048501,1704889858557,-500.0,0.0003041,2]
[311048502,1704889858567,-910.15,0.0003041,2]
[311048503,1704889858576,-467.37580783,0.0003041,2]
[311048504,1704889858585,-500.0,0.0003041,2]
[311048505,1704889858594,-1074.34,0.0003041,2]
[311048506,1704889858603,-500.0,0.0003041,2]
[311048507,1704889858612,-688.15,0.0003041,2]
[311048508,1704889858621,-1408.84,0.0003041,2]
[311048509,1704889858631,-992.67,0.0003041,2]
[311048510,1704889858642,-500.0,0.0003041,2]
[311048511,1704889858651,-500.0,0.0003041,2]
[311048512,1704889858660,-674.19,0.0003041,2]
[311048513,1704889858669,-623.83,0.0003041,2]
[311048514,1704889858678,-500.0,0.0003041,2]
[311048515,1704889858687,-500.0,0.0003041,2]
[311048516,1704889858696,-1308.25,0.0003041,2]
[311048517,1704889858705,-568.67,0.0003041,2]
[311048518,1704889858714,-1132.9,0.0003041,2]
[311048519,1704889858723,-500.0,0.0003041,2]
[311048520,1704889858732,-500.0,0.0003041,2]
[311048521,1704889858741,-500.0,0.0003041,2]
[311048522,1704889858750,-500.0,0.0003041,2]
[311048523,1704889858760,-500.0,0.0003041,2]
[311048524,1704889858769,-500.0,0.0003041,2]
[311048525,1704889858778,-500.0,0.0003041,2]
[311048526,1704889858787,-619.57,0.0003041,2]
[311048527,1704889858796,-500.0,0.0003041,2]
[311048528,1704889858805,-1080.53,0.0003041,2]
[311048529,1704889858813,-500.0,0.0003041,2]
[311048530,1704889858823,-776.49,0.0003041,2]
[311048531,1704889858832,-797.89,0.0003041,2]
[311048532,1704889858841,-500.0,0.0003041,2]
[311048533,1704889858851,-693.28,0.0003041,2]
[311048534,1704889858860,-500.0,0.0003041,2]
[311048535,1704889858870,-500.0,0.0003041,2]
[311048536,1704889858879,-1421.98,0.0003041,2]
[311048537,1704889858891,-1000.0,0.0003041,2]
[311048538,1704889858901,-500.0,0.0003041,2]
[311048539,1704889858910,-1059.23,0.0003041,2]
[311048540,1704889858919,-1078.63,0.0003041,2]
[311048541,1704889858928,-1018.85,0.0003041,2]
[311048542,1704889858938,-1239.08,0.0003041,2]
[311048543,1704889858947,-621.11,0.0003041,2]
[311048544,1704889858956,-500.0,0.0003041,2]
[311048545,1704889858965,-1609.93,0.0003041,2]
[311048546,1704889858975,-970.94,0.0003041,2]
[311048547,1704889858984,-500.0,0.0003041,2]
[311048548,1704889858993,-628.13,0.0003041,2]
[311048549,1704889859003,-431.36237411,0.0003041,2]
[311048550,1704889859012,-657.91,0.0003041,2]
[311048551,1704889859021,-500.0,0.0003041,2]
[311048552,1704889859031,-500.0,0.0003041,2]
[311048553,1704889859040,-500.0,0.0003041,2]
[311048554,1704889859049,-500.0,0.0003041,2]
[311048555,1704889859059,-875.35,0.0003041,2]
[311048556,1704889859068,-500.0,0.0003041,2]
[311048557,1704889859077,-500.0,0.0003041,2]
[311048558,1704889859087,-500.0,0.0003041,2]
[311048559,1704889859096,-500.0,0.0003041,2]
[311048560,1704889859106,-300.0,0.0003041,2]
[311048561,1704889859115,-1080.66,0.0003041,2]
[311048562,1704889859125,-1260.41,0.0003041,2]
[311048563,1704889859133,-500.0,0.0003041,2]
[311048564,1704889859145,-500.0,0.0003041,2]
[311048565,1704889859155,-609.5,0.0003041,2]
[311048566,1704889859164,-1394.51,0.0003041,2]
[311048567,1704889859173,-500.0,0.0003041,2]
[311048568,1704889859182,-500.0,0.0003041,2]
[311048569,1704889859192,-500.0,0.0003041,2]
[311048570,1704889859201,-1329.05,0.0003041,2]
[311048571,1704889859210,-500.0,0.0003041,2]
[311048572,1704889859219,-1122.75,0.0003041,2]
[311048573,1704889859228,-500.0,0.0003041,2]
[311048574,1704889859237,-500.0,0.0003041,2]
[311048575,1704889859247,-500.0,0.0003041,2]
[311048576,1704889859256,-611.47,0.0003041,2]
[311048577,1704889859265,-500.0,0.0003041,2]
[311048578,1704889859274,-500.0,0.0003041,2]
[311048579,1704889859283,-500.0,0.0003041,2]
[311048580,1704889859293,-1143.2,0.0003041,2]
[311048581,1704889859302,-500.0,0.0003041,2]
[311048582,1704889859312,-943.81,0.0003041,2]
[311048583,1704889859321,-500.0,0.0003041,2]
[311048584,1704889859330,-676.64,0.0003041,2]
[311048585,1704889859339,-963.94,0.0003041,2]
[311048586,1704889859349,-587.29,0.0003041,2]
[311048587,1704889859358,-500.0,0.0003041,2]
[311048588,1704889859367,-500.0,0.0003041,2]
[311048589,1704889859377,-500.0,0.0003041,2]
[311048590,1704889859389,-500.0,0.0003041,2]
[311048591,1704889859398,-500.0,0.0003041,2]
[311048592,1704889859408,-500.0,0.0003041,2]
[311048593,1704889859418,-500.0,0.0003041,2]
[311048594,1704889859427,-500.0,0.0003041,2]
[311048595,1704889859437,-738.26,0.0003041,2]
[311048596,1704889859446,-1081.53,0.0003041,2]
[311048597,1704889859456,-500.0,0.0003041,2]
[311048598,1704889859466,-1971.18,0.0003041,2]
[311048599,1704889859475,-753.11,0.0003041,2]
[311048600,1704889859485,-713.67,0.0003041,2]
[311048601,1704889859494,-500.0,0.0003041,2]
[311048602,1704889859504,-500.0,0.0003041,2]
[311048603,1704889859513,-500.0,0.0003041,2]
[311048604,1704889859522,-500.0,0.0003041,2]
[311048605,1704889859532,-592.26,0.0003041,2]
[311048606,1704889859541,-876.77,0.0003041,2]
[311048607,1704889859551,-500.0,0.0003041,2]
[311048608,1704889859561,-1205.6,0.0003041,2]
[311048609,1704889859571,-786.11,0.0003041,2]
[311048610,1704889859580,-1405.05,0.0003041,2]
[311048611,1704889859589,-512.45509443,0.0003041,2]
[311048612,1704889859599,-1357.22,0.0003041,2]
[311048613,1704889859608,-500.0,0.0003041,2]
[311048614,1704889859617,-500.0,0.0003041,2]
[311048615,1704889859627,-454.49975808,0.0003041,2]
[311048616,1704889859639,-817.66,0.0003041,2]
[311048617,1704889859649,-500.0,0.0003041,2]
[311048618,1704889859658,-500.0,0.0003041,2]
[311048619,1704889859668,-500.0,0.0003041,2]
[311048620,1704889859678,-515.91,0.0003041,2]
[311048621,1704889859688,-590.91,0.0003041,2]
[311048622,1704889859698,-500.0,0.0003041,2]
[311048623,1704889859708,-1328.98,0.0003041,2]
[311048624,1704889859717,-500.0,0.0003041,2]
[311048625,1704889859727,-564.69,0.0003041,2]
[311048626,1704889859737,-664.71,0.0003041,2]
[311048627,1704889859747,-1818.56,0.0003041,2]
[311048628,1704889859758,-500.0,0.0003041,2]
[311048629,1704889859772,-500.0,0.0003041,2]
[311048630,1704889859782,-1359.78,0.0003041,2]
[311048631,1704889859792,-500.0,0.0003041,2]
[311048632,1704889859802,-500.0,0.0003041,2]
[311048633,1704889859812,-1646.24,0.0003041,2]
[311048634,1704889859822,-500.0,0.0003041,2]
[311048635,1704889859831,-1205.85,0.0003041,2]
[311048636,1704889859842,-914.4,0.0003041,2]
[311048637,1704889859852,-999.71,0.0003041,2]
[311048638,1704889859862,-1697.06,0.0003041,2]
[311048639,1704889859872,-918.01,0.0003041,2]
[311048640,1704889859882,-500.0,0.0003041,2]
[311048641,1704889859895,-500.0,0.0003041,2]
[311048642,1704889859906,-500.0,0.0003041,2]
[311048643,1704889859915,-787.03,0.0003041,2]
[311048644,1704889859925,-852.46,0.0003041,2]
[311048645,1704889859935,-500.0,0.0003041,2]
[311048646,1704889859946,-510.12948891,0.0003041,2]
[311048647,1704889859956,-504.79,0.0003041,2]
[311048648,1704889859966,-532.75,0.0003041,2]
[311048649,1704889859976,-500.0,0.0003041,2]
[311048650,1704889859987,-500.0,0.0003041,7]
[311048651,1704889859996,-500.0,0.0003041,2]
[311048652,1704889860006,-500.0,0.0003041,2]
[311048653,1704889860016,-1171.44,0.0003041,2]
[311048654,1704889860026,-1661.84,0.0003041,2]
[311048655,1704889860035,-500.0,0.0003041,2]
[311048656,1704889860045,-500.0,0.0003041,2]
[311048657,1704889860055,-742.53,0.0003041,2]
[311048658,1704889860065,-2042.32,0.0003041,2]
[311048659,1704889860075,-500.0,0.0003041,2]
[311048660,1704889860086,-500.0,0.0003041,2]
[311048661,1704889860096,-834.09,0.0003041,2]
[311048662,1704889860105,-518.43,0.0003041,2]
[311048663,1704889860116,-800.82,0.0003041,2]
[311048664,1704889860125,-745.31,0.0003041,2]
[311048665,1704889860135,-985.47,0.0003041,2]
[311048666,1704889860146,-500.0,0.0003041,2]
[311048667,1704889860156,-500.0,0.0003041,2]
[311048668,1704889860166,-733.93,0.0003041,2]
[311048669,1704889860176,-500.0,0.0003041,2]
[311048670,1704889860185,-500.0,0.0003041,2]
[311048671,1704889860195,-765.43,0.0003041,2]
[311048672,1704889860205,-500.0,0.0003041,2]
[311048673,1704889860215,-665.47,0.0003041,2]
[311048674,1704889860224,-591.35,0.0003041,2]
[311048675,1704889860234,-500.0,0.0003041,2]
[311048676,1704889860244,-1028.14,0.0003041,2]
[311048677,1704889860253,-1244.37,0.0003041,2]
[311048678,1704889860263,-928.42,0.0003041,2]
[311048679,1704889860273,-500.0,0.0003041,2]
[311048680,1704889860282,-1050.7,0.0003041,2]
[311048681,1704889860292,-500.0,0.0003041,2]
[311048682,1704889860303,-500.0,0.0003041,2]
[311048683,1704889860313,-1005.39,0.0003041,2]
[311048684,1704889860323,-892.35,0.0003041,4]
[311048685,1704889860333,-999.28,0.0003041,2]
[311048686,1704889860343,-500.0,0.0003041,2]
[311048687,1704889860355,-500.0,0.0003041,2]
[311048688,1704889860364,-500.0,0.0003041,2]
[311048689,1704889860374,-850.5,0.0003041,2]
[311048690,1704889860383,-913.67,0.0003041,2]
[311048691,1704889860396,-1307.7,0.0003041,2]
[311048692,1704889860406,-1840.01,0.0003041,2]
[311048693,1704889860415,-905.12,0.0003041,2]
[311048694,1704889860425,-1163.6,0.0003041,2]
[311048695,1704889860435,-627.63,0.0003041,2]
[311048696,1704889860444,-603.43,0.0003041,2]
[311048697,1704889860454,-1883.78,0.0003041,2]
[311048698,1704889860464,-895.28,0.0003041,2]
[311048699,1704889860473,-500.0,0.0003041,2]
[311048700,1704889860483,-1577.56,0.0003041,2]
[311048701,1704889860492,-1019.82,0.0003041,2]
[311048702,1704889860502,-727.88,0.0003041,2]
[311048703,1704889860511,-506.31,0.0003041,2]
[311048704,1704889860520,-1464.15,0.0003041,2]
[311048705,1704889860530,-500.0,0.0003041,2]
[311048706,1704889860540,-500.0,0.0003041,2]
[311048707,1704889860550,-500.0,0.0003041,2]
[311048708,1704889860561,-3250.68,0.0003041,2]
[311048709,1704889860570,-1000.0,0.0003041,2]
[311048710,1704889860581,-500.0,0.0003041,2]
[311048711,1704889860592,-492.85386361,0.0003041,2]
[311048712,1704889860602,-500.0,0.0003041,2]
[311048713,1704889860612,-500.0,0.0003041,2]
[311048714,1704889860623,-528.21377364,0.0003041,2]
[311048715,1704889860633,-913.84,0.0003041,2]
[311048716,1704889860648,-856.61,0.0003041,2]
[311048717,1704889860659,-500.0,0.0003041,2]
[311048718,1704889860669,-500.0,0.0003041,2]
[311048719,1704889860679,-909.57,0.0003041,2]
[311048720,1704889860689,-602.22,0.0003041,2]
[311048721,1704889860698,-1140.97,0.0003041,2]
[311048722,1704889860708,-500.0,0.0003041,2]
[311048723,1704889860718,-1267.63,0.0003041,2]
[311048724,1704889860728,-1134.59,0.0003041,2]
[311048725,1704889860738,-590.83,0.0003041,2]
[311048726,1704889860747,-500.0,0.0003041,2]
[311048727,1704889860758,-500.0,0.0003041,2]
[311048728,1704889860767,-695.54,0.0003041,2]
[311048729,1704889860777,-500.0,0.0003041,2]
[311048730,1704889860787,-500.0,0.0003041,2]
[311048731,1704889860797,-500.0,0.0003041,2]
[311048732,1704889860807,-1056.49,0.0003041,2]